Cogmind - Beta 13 X1 @@@ ROGUE MODE // 2023.07.19 @ 10:59:56 Player: Minty Result: Destroyed self with Improved Grenade Launcher Performance ------------- Evolutions (2) 1000 Regions Visited (4) 800 Robots Destroyed (60) 300 Value Destroyed (1859) 1859 Prototype IDs (3) 60 Alien Tech Used (0) 0 Bonus (396) 396 TOTAL SCORE: 4415 Bonus ------- High Alert Combat Kills 396 Cogmind --------- Core Integrity 0/550 Matter 117/300 Energy 140/140 System Corruption 17% Temperature Cool (0) Movement Rolling (100) Location -8/Storage Parts ------- > --- POWER (1) -------- Light Deuterium Engine > --- PROPULSION (4) --- Armored Huge Wheel Armored Huge Wheel > --- UTILITY (3) ------ Improved Cooling System Improved Sensor Array Hacking Suite > --- WEAPON (3) ------- Plasma Cannon Plasma Cannon Improved Grenade Launcher > --- INVENTORY (5) ---- Improved Ion Engine Cooled Pulse Rifle Cooled Pulse Rifle Plasma Cannon Peak State ------------ > --- POWER ------------ Nuclear Core > --- PROPULSION ------- Armored Huge Wheel Armored Huge Wheel > --- UTILITY ---------- Improved Cooling System Improved Light Armor Plating Hacking Suite > --- WEAPON ----------- Plasma Cannon Plasma Cannon Plasma Cannon > --- INVENTORY -------- Improved Ion Engine Improved Sensor Array Cooled Pulse Rifle Cooled Pulse Rifle Improved Grenade Launcher [Rating: 42] Favorites ----------- Power Improved Ion Engine Engine Improved Ion Engine Power Core Nuclear Core Propulsion Improved Flight Unit Treads Light Treads Leg Aluminum Leg Wheel Armored Huge Wheel Hover Unit Hover Unit Flight Unit Improved Flight Unit Utility Hacking Suite Device ECM Suite Storage High-capacity Storage Unit Processor Improved Terrain Scan Processor Hackware Hacking Suite Protection Improved Light Armor Plating Weapon Plasma Cannon Energy Gun Improved EM Shotgun Energy Cannon Plasma Cannon Ballistic Gun Gauss Rifle Ballistic Cannon Light Cannon Launcher Grenade Launcher Build | -11 -10 -9 -8 -8 ------- Run | Jun Mat Mat Mat Sto Slots Evolved 4 | . . 2 2 . Power . | . . . . . Propulsion 2 | . . 2 . . Utility 1 | . . . 1 . Weapon 1 | . . . 1 . Parts Attached 92 | . 12 25 47 8 Power 11 | . 1 3 3 4 Engine 10 | . 1 3 3 3 Core 1 | . . . . 1 Reactor . | . . . . . Propulsion 23 | . 4 8 10 1 Treads 2 | . 2 . . . Leg 3 | . . . 3 . Wheel 3 | . . . 2 1 Hover 3 | . 2 1 . . Flight 12 | . . 7 5 . Utility 23 | . 4 4 13 2 Device 13 | . 3 3 5 2 Storage 4 | . 1 . 3 . Processor 1 | . . . 1 . Hackware 2 | . . . 2 . Protection 3 | . . 1 2 . Artifact . | . . . . . Weapon 35 | . 3 10 21 1 Energy Gun 10 | . . 3 7 . Energy Cannon 4 | . . . 4 . Ballistic Gun 10 | . 1 2 7 . Ballistic Cannon 2 | . . 2 . . Launcher 9 | . 2 3 3 1 Special Weapon . | . . . . . Impact Weapon . | . . . . . Slashing Weapon . | . . . . . Piercing Weapon . | . . . . . Special Melee Weapon . | . . . . . Unidentified Prototypes 3 | . . 2 1 . Corrupted Parts 3 | . 1 . 2 . System Corruption 24 | . 7 . 17 . Parts Lost 22 | . . 6 14 2 Power 3 | . . 1 1 1 Propulsion 5 | . . . 5 . Utility 8 | . . 3 4 1 Weapon 6 | . . 2 4 . Highest Loss Streak 5 | . . 5 5 2 To Critical Strikes . | . . . . . Average Slot Usage (%) 83 | . 95 88 74 80 Engine 8 | . 14 10 5 6 Treads 5 | . 21 . . . Leg 2 | . 2 . 6 . Wheel 3 | . . . . 18 Hover 2 | . 3 10 . . Flight 12 | . . 29 18 . Device 10 | . 11 12 7 9 Storage 4 | . 12 . 3 . Hackware 4 | . . . 5 10 Protection 2 | . . 3 1 6 Energy Gun 6 | . 4 8 9 . Energy Cannon 5 | . . . 1 24 Ballistic Gun 6 | . 7 3 11 . Launcher 5 | . 15 4 . 2 Naked Turns . | . . . . . Heaviest Build 51 | 11 51 17 31 35 Greatest Support 56 | 20 40 20 56 56 Greatest Overweight (x) 2 | . 2 1 2 . Average Overweight (x) . | . . . . . Largest Inventory Capacity 20 | . 20 5 5 5 Average Capacity 8 | . 17 5 5 5 Most Carried 20 | . 20 5 5 5 Average Carried 6 | . 9 4 4 4 Final Capacity 8 | 8 5 5 5 5 Final Carried 6 | 6 5 5 5 4 Class Distribution -------------------- 47% | Mutant 24% | Sprinter 11% | Tank 6% | Scavenger-Bomber 4% | Hacker-Tank 4% | Bomber Dominant Class ---------------- Mutant | -10/Materials Sprinter | -9/Materials Sprinter | -8/Materials Tank | -8/Storage Resources | -11 -10 -9 -8 -8 ----------- Run | Jun Mat Mat Mat Sto Matter Collected 1388 | 189 92 304 524 279 Remotely . | . . . . . Salvage Created 1790 | . 149 225 755 661 Parts 101 | . 12 19 36 34 Haulers Intercepted 2 | . . 1 . 1 Recyclers Shooed . | . . . . . Parts Field Recycled . | . . . . . Retrieved Matter . | . . . . . Parts Self-Destructed . | . . . . . Prevented . | . . . . . Kills | -11 -10 -9 -8 -8 ------- Run | Jun Mat Mat Mat Sto Combat Hostiles Destroyed 45 | . 4 11 15 15 Guns 12 | . . 2 10 . Cannons 11 | . . 1 . 10 AOE 19 | . 4 8 4 3 Classes Destroyed 10 | . 4 4 2 . Worker 4 | . 2 1 . 1 Builder 3 | . 1 . 1 1 Hauler 2 | . . 1 . 1 Operator 2 | . . 1 . 1 Watcher 4 | . 2 . 1 1 Swarmer 12 | . . 8 . 4 Grunt 22 | . 4 1 10 7 Duelist 1 | . . . 1 . Sentry 8 | . . 2 3 3 Hunter 2 | . . . 1 1 Best Kill Streak 9 | . 4 9 6 4 Combat Bots Only 8 | . 2 8 6 4 Max Kills in Single Turn 5 | . 2 5 1 2 Gunslinging . | . . . . . Exploded 5 | . 2 5 1 1 Melee . | . . . . . Uniques/NPCs Destroyed . | . . . . . Combat | -11 -10 -9 -8 -8 -------- Run | Jun Mat Mat Mat Sto Damage Taken 3409 | . 108 737 1504 1060 Core 750 | . 34 152 449 115 Absorbed by Shields 78 | . . 23 55 . Regen/Repaired (Parts) 26 | . . . 26 . Core Remaining (%) 82 | 100 86 62 . . Volleys Fired 147 | . 9 44 60 34 Largest 3 | . 2 2 3 3 Hottest 240 | . 60 90 153 240 Shots Fired 258 | . 18 59 104 77 Gun 138 | . 4 35 99 . Cannon 81 | . . 11 1 69 Launcher 39 | . 14 13 4 8 Special . | . . . . . Kinetic 77 | . 3 20 54 . Thermal 120 | . 1 22 28 69 Explosive 39 | . 14 13 4 8 Electromagnetic 22 | . . 4 18 . Robot Hit Streak 12 | . 5 5 12 8 Robot Miss Streak 6 | . 1 6 3 2 Penetration Max . | . . . . . Secondary Targets . | . . . . . Shots Hit Robots 147 | . 7 26 74 40 Core Hits 97 | . 14 21 31 31 Critical Kills 2 | . . . . 2 Critical Parts Destroyed 1 | . . . 1 . Critical Strikes 6 | . . 1 3 2 Burn 3 | . . 1 2 . Meltdown 2 | . . . . 2 Destroy 1 | . . . 1 . Melee Attacks . | . . . . . Impact . | . . . . . Slashing . | . . . . . Piercing . | . . . . . Sneak Attacks . | . . . . . Combat Hostiles . | . . . . . Follow-up Attacks . | . . . . . Damage Inflicted 4856 | . 675 1014 1654 1513 Guns 1581 | . 39 273 1269 . Cannons 1123 | . . 39 28 1056 Explosions 2095 | . 620 702 357 416 Melee . | . . . . . Ramming 57 | . 16 . . 41 Kinetic 837 | . 39 110 688 . Thermal 1600 | . . 158 386 1056 Explosive 2015 | . 594 702 303 416 Electromagnetic 347 | . 26 44 277 . Impact . | . . . . . Slashing . | . . . . . Piercing . | . . . . . Highest Corruption 17 | . 7 . 17 17 Average Corruption 16 | . 7 . 16 17 Corruption Purged . | . . . . . Corruption Blocked . | . . . . . Effects 52 | . . . 29 23 Message Errors 6 | . . . 3 3 Matter Fused 4 | . . . 3 1 Heat Flow Errors 6 | . . . 2 4 Energy Discharges 6 | . . . 3 3 Parts Rejected 4 | . . . 3 1 Data Loss (minor) 10 | . . . 8 2 Data Loss (major) 2 | . . . 1 1 Misfires 4 | . . . 2 2 Alerts 3 | . . . 1 2 Misdirections 5 | . . . 2 3 Weapon Failures 2 | . . . 1 1 Overload Shots . | . . . . . Overflow Damage 40 | . . 22 . 18 Projectiles 18 | . . . . 18 Explosions 22 | . . 22 . . Melee . | . . . . . Knockbacks . | . . . . . Impact . | . . . . . Kinetic . | . . . . . Secondary . | . . . . . Self-Inflicted Damage 232 | . 64 14 32 122 Shots 9 | . 3 1 2 3 Rammed 8 | . 2 1 . 5 Targets Rammed 8 | . 2 1 . 5 Kicked . | . . . . . Crushed . | . . . . . Highest Temperature 370 | . 54 295 291 370 Average Temperature 108 | . 26 99 125 116 Received Heat Transfer 1460 | . 42 257 756 405 Effects 2 | . . 2 . . Interference 2 | . . 2 . . Siege Activations . | . . . . . Robots Corrupted 1 | . . . 1 . Combat Hostiles 1 | . . . 1 . Parts Fried 1 | . . . 1 . Impact Corruptions . | . . . . . Robots Melted 2 | . . . . 2 Combat Hostiles 2 | . . . . 2 Parts Melted 7 | . . . 1 6 Heat Transferred 3469 | . . 444 975 2050 Parts Sabotaged . | . . . . . Parts Stolen . | . . . . . Parts Stripped . | . . . . . Power Chain Reactions 1 | . . . 1 . Missiles Intercepted . | . . . . . Alert | -11 -10 -9 -8 -8 ------- Run | Jun Mat Mat Mat Sto Peak Influence 860 | . 187 742 837 860 Initial 308 | . . 35 308 300 Average 384 | . 75 273 592 518 Maximum Alert Level 3 | . . 3 3 3 Low Security (%) 37 | . 100 60 . . Level 1 17 | . . 14 13 48 Level 2 29 | . . 22 56 25 Level 3 16 | . . 2 30 25 Level 4 . | . . . . . Level 5 . | . . . . . High Security . | . . . . . Max Security . | . . . . . Squads Dispatched 13 | . . 3 4 6 Investigation 5 | . . 2 3 . Extermination . | . . . . . Reinforcement 5 | . . 1 1 3 Assault . | . . . . . Garrison 3 | . . . . 3 Intercept . | . . . . . Searches Triggered . | . . . . . Construction Impeded 1 | . . . . 1 Haulers Reinforced . | . . . . . Active Scanning Responses . | . . . . . Cargo Convoy Interrupts . | . . . . . Stealth | -11 -10 -9 -8 -8 --------- Run | Jun Mat Mat Mat Sto Distress Signals 8 | . . 3 2 3 Communications Jammed . | . . . . . Distress Signals . | . . . . . Times Spotted 110 | . 8 40 30 32 Peak Tracking Total 19 | . 2 19 9 7 Tactical Retreats 15 | . . 6 5 4 Traps | -11 -10 -9 -8 -8 ------- Run | Jun Mat Mat Mat Sto Traps Triggered 1 | . . 1 . . Indirectly . | . . . . . Trap Hack Attempts . | . . . . . Triggered . | . . . . . Disarmed . | . . . . . Reprogrammed . | . . . . . Reused . | . . . . . Traps Extracted . | . . . . . Installed . | . . . . . Triggered . | . . . . . Machines | -11 -10 -9 -8 -8 ---------- Run | Jun Mat Mat Mat Sto Machines Disabled 9 | . 2 2 2 3 Max in Single Turn 1 | . 1 1 1 1 Machines Repaired . | . . . . . Machines Sabotaged . | . . . . . Overloaded Fab Kills . | . . . . . Hacking | -11 -10 -9 -8 -8 --------- Run | Jun Mat Mat Mat Sto Machines Accessed 14 | . 3 4 6 1 Terminals 10 | . 2 3 4 1 Fabricators . | . . . . . Repair Stations 1 | . . . 1 . Recycling Units 3 | . 1 1 1 . Scanalyzers . | . . . . . Garrison Access . | . . . . . Total Hacks 54 | . 9 18 21 6 Successful 28 | . 8 7 10 3 Failed 26 | . 1 11 11 3 Catastrophic 2 | . . . . 2 Database Lockouts . | . . . . . Manual 28 | . 4 9 10 5 Terminals 40 | . 7 13 14 6 Fabricators . | . . . . . Repair Stations 4 | . . . 4 . Recycling Units 10 | . 2 5 3 . Scanalyzers . | . . . . . Garrison Access . | . . . . . Terminal Hacks 9 | . 3 2 2 2 Robot Analysis 1 | . . . 1 . Recycling Unit Index 1 | . . 1 . . Alert Level 3 | . . 1 1 1 Unreport Threat 1 | . . . . 1 Locate Traps 1 | . 1 . . . Dispatch Records 1 | . 1 . . . Reinforcement Status 1 | . 1 . . . Fabricator Hacks . | . . . . . Repair Station Hacks 2 | . . . 2 . Scan Component 1 | . . . 1 . Repair 1 | . . . 1 . Recycling Unit Hacks 7 | . 2 3 2 . Process 1 | . . 1 . . Report Inventory 2 | . 1 . 1 . Retrieve Matter 2 | . . 2 . . Retrieve Components 2 | . 1 . 1 . Scanalyzer . | . . . . . Garrison Access Hacks . | . . . . . Unauthorized Hacks 10 | . 3 2 4 1 Terminals 10 | . 3 2 4 1 Botnet 7 | . 2 2 2 1 Detonate 1 | . . . 1 . Disrupt 1 | . 1 . . . Search 1 | . . . 1 . Fabricators . | . . . . . Repair Stations . | . . . . . Recycling Units . | . . . . . Scanalyzers . | . . . . . Garrison Access . | . . . . . Data Cores Recovered . | . . . . . Used . | . . . . . Hacking Detections 14 | . 3 4 6 1 Full Trace Events 4 | . . 2 2 . Feedback Events . | . . . . . Feedback Blocked . | . . . . . Robot Schematics Acquired . | . . . . . Robots Built . | . . . . . Authchips . | . . . . . Time . | . . . . . Total Robot Build Rating . | . . . . . Part Schematics Acquired . | . . . . . Parts Built . | . . . . . Authchips . | . . . . . Time . | . . . . . Total Part Build Rating . | . . . . . Parts Repaired 1 | . . . 1 . Time 51 | . . . 51 . Parts Recycled . | . . . . . Recycled Matter 216 | . . 216 . . Retrieved Matter 216 | . . 216 . . Retrieved Components 3 | . 1 . 2 . Parts Scanalyzed . | . . . . . Part Schematics Acquired . | . . . . . Parts Damaged . | . . . . . Bothacking | -11 -10 -9 -8 -8 ------------ Run | Jun Mat Mat Mat Sto Used RIF Installer . | . . . . . Robots Hacked . | . . . . . Non-combat . | . . . . . Combat . | . . . . . Robot Hacks Applied . | . . . . . Relay Couplers Released . | . . . . . Fabnet Peak Effective % . | . . . . . Robots Rewired . | . . . . . Allies Hacked . | . . . . . Hacks Repelled . | . . . . . Allies | -11 -10 -9 -8 -8 -------- Run | Jun Mat Mat Mat Sto Total Allies . | . . . . . Largest Group . | . . . . . Highest-Rated Group . | . . . . . Highest-Rated Ally . | . . . . . Total Orders . | . . . . . Ally Attacks . | . . . . . Total Damage . | . . . . . Kills . | . . . . . Allies Corrupted . | . . . . . Allies Melted . | . . . . . Intel | -11 -10 -9 -8 -8 ------- Run | Jun Mat Mat Mat Sto Robot Analysis Total 1 | . . . 1 . Derelict Logs Recovered . | . . . . . Drone Launches . | . . . . . Drone Recoveries . | . . . . . Exploration | -11 -10 -9 -8 -8 ------------- Run | Jun Mat Mat Mat Sto Turns Passed 1784 | . 444 358 616 366 Spaces Moved 1539 | 1 216 526 554 242 Core . | . . . . . Treads 125 | . 125 . . . Legs 132 | 1 36 . 95 . Wheels 262 | . . . 20 242 Hover 154 | . 55 99 . . Flight 866 | . . 427 439 . Fastest Speed 31 | 120 56 31 31 100 Average Speed 72 | 120 174 36 54 100 Slowest Speed 260 | 120 260 116 190 100 Overloaded Moves . | . . . . . Propulsion Burnouts . | . . . . . Robots Hopped 36 | . . 25 11 . Cave-ins Triggered . | . . . . . Exploration Rate (%) 35 | 2 40 45 43 46 Regions Visited 4 Branch Regions 1 Pre-discovered Areas . | . . . . . Known Exits Taken . | . . . . . Unknown Exits Taken 4 | 1 1 1 1 . Scrap Searched . | . . . . . Spaces Dug . | . . . . . Terrain Destroyed 293 | . 88 69 53 83 Melee . | . . . . . Projectile 18 | . . . . 18 AOE 275 | . 88 69 53 65 Terrain Rammed . | . . . . . Walls Destroyed . | . . . . . Machines Disabled . | . . . . . Actions | -11 -10 -9 -8 -8 --------- Run | Jun Mat Mat Mat Sto Total 1932 | . 264 604 758 306 Wait 94 | . . 10 70 14 Move 1469 | . 215 481 531 242 Hop 30 | . . 19 11 . Pick Up 34 | . 13 10 10 1 Fast Attach 51 | . 8 11 31 1 Attach 15 | . 2 4 6 3 Detach 13 | . 7 1 4 1 Swap 26 | . 2 10 10 4 Drop 45 | . 6 13 25 1 Fire 147 | . 9 44 60 34 Melee . | . . . . . Ram 6 | . . 1 . 5 Kick . | . . . . . Crush 2 | . 2 . . . Escape Stasis . | . . . . . Rewire . | . . . . . Trap . | . . . . . Miscellaneous . | . . . . . Route ------- -11/Junkyard -10/Materials -9/Materials -8/Materials (discovered 2 exits: [*Fac] / *Sto) -8/Storage History --------- Turn | Location | Event 1 | -11/Junkyard | Discovered new exit (range 0) 1 | -11/Junkyard | Entered Materials 240 | -10/Materials | Discovered new exit (range 14) 314 | -10/Materials | Build established: Mutant 445 | -10/Materials | Entered another Materials area 445 | -9/Materials | Evolved 2 slots: Propulsion x2 738 | -9/Materials | Destroyed 8 combat bots 744 | -9/Materials | Discovered new exit (range 10) 766 | -9/Materials | Lost 5 parts (1p2u2w) 803 | -9/Materials | Entered another Materials area 803 | -8/Materials | Evolved 2 slots: Utility x1, Weapon x1 869 | -8/Materials | Build established: Sprinter 899 | -8/Materials | System corruption reached 10% 988 | -8/Materials | Discovered new exit (range 15) 999 | -8/Materials | Lost 3 parts (1n2w) 1099 | -8/Materials | Repaired Imp. Flight Unit 1102 | -8/Materials | Lost 5 parts (1p2n2u) 1154 | -8/Materials | Core integrity fell below 50% 1182 | -8/Materials | Lost 3 parts (1n1u1w) 1201 | -8/Materials | Core integrity fell below 20% 1369 | -8/Materials | Discovered new exit (range 5) 1419 | -8/Materials | Entered Storage 1513 | -8/Storage | Garrison activated, responded to threat 1785 | -8/Storage | Destroyed self with Improved Grenade Launcher Last Messages --------------- 01727_ W-25 Informer destroyed. 01729_ K-01 Serf collects debris. 01730_ System corrupted: Heat flow error (+187). 01730_ K-01 Serf collects debris. 01731_ T-07 Excavator is excavating. 01731_ K-01 Serf collects debris. 01735_ U-05 Engineer lays Concrete. 01735_ T-07 Excavator is excavating. 01737_ K-01 Serf collects debris. 01744_ W-25 Informer sends out distress signal. 01744_ Acquired 43 matter. 01746_ System corrupted: Substantial component data lost. 01761_ System corrupted: IFF burst signal emitted. 01761_ Slammed into O-16 Technician. 01762_ Acquired 55 matter. 01771_ U-05 Engineer lays Concrete. 01774_ K-01 Serf collects debris. 01782_ O-16 Technician: "IFF HANDSHAKE FAILED. SECURING TERMINAL." 01785_ Terminal disabled. 01785_ O-16 Technician destroyed. Map ----- +----------------------------------------------------+ | ???????????# ##### # =%!! ! # | | ???????????+ T #####"######### | | ???????????# ##### #???#%#???????? | | ?????????????????## ##???"!##??????? | | ????????????????? ???#[##??????? | | ????????????????# #?# # #?????? | | ????????????????## #?# ###?????? | | ??????????????????# #?# #???????? | | ??????????????????######?# #???????? | | ?????????????????????????# #???????? | | ?????????????????????????# #???????? | | ?????????????????????????# ######### | | ?????????????????????????# | | ?????????????????????????# #### | | ?????????????????######### #???????? | | ????????????# ! / #???????? | | ???#???????"" #### ###??###### | | ???# ?????????????????# # ???# | | ???# ????????????????# ##???# | | ???# ???????????????# #????# | | ???# #####?????????# #????# | | ???# # ###+###### #????# | | ????? # #### | | ??????# =%* k ########## | | ??????# = | | ??????# @ | | ??????# #####+# ? | | ??????# # % # #### | | ??????+ + ] ## | | ??????####### # ## # ## | | ????????????# # # %? ## | | ????????????# # # ## | | ????????????# # # # !"# | | ????????????# ######### # % %"% | | ????????????# #??????## #####+"## | | ????????????# #??????#" #### ## | | ????????????? ???????## | | ????????????? ????????#"##"## ### | | ?????????????#????????###########?#^ | | ??????????????????????????????????+ | | ??????????????????????????????????#+ | | ???????????????????????????????????? | | ???????????????????????????????????? | | ???????????????????????????????????? | | ???????????????????????????????????? | | ???????????????????????????????????? | | ???????????????????????????????????? | | ???????????????????????????????????? | | ???????????????????????????????????? | | ???????????????????????????????????? | +----------------------------------------------------+ Best States ------------- Heat Dissipation 58 Energy Generation 14 Energy Capacity 665 Matter Stores 366 Matter Capacity 450 Sight Range 16 Robot Scan Range 15 Terrain Scan Range 16 Terrain Scan Density 110 ECM Strength 1 Armor Coverage 150 Evasion (%) 63 Recoil Reduction 2 Offensive Hacking 10 Defensive Hacking 10 Item Schematics ----------------- None Robot Schematics ------------------ None Fabricated ------------ Nothing Alien Tech Used ----------------- None Achievements -------------- None Challenges ------------ None Game ------ Seed HeartRiotNullifier Manual? 0 Play Time 00:23:45 Cumulative 474.9 hours Start 2023.07.19 @ 10:39:59 End 2023.07.19 @ 10:59:56 Sessions 1 Manual Loads 0 Difficulty Rogue Special Mode None Game No. 381 Rogue 162 Adventurer 76 Explorer 143 Win Type - Total 22 Types 19/0/2/0/0/0/0/1/0 Lore% 67 Gallery% 87 Achievement% 71 Wizard Run 0 Options --------- ASCII 0 Keyboard 1 Movement Numpad Keybinds 0 Fullscreen 2 Font 18/X11Bold Map View 76x50 Tactical HUD 1 Map Filters NONE Filters NONE Steam 1 RUN: c67c0b0d-4b17-42f4-a559-d0b4a1ba968a